fUST/lending_fUST_20250727
["ID","MTS","AMOUNT","RATE_DAILY","PERIOD"]
[375182248,1753581040735,-460.0,0.00019228,2]
[375182250,1753581040745,-187.82362653,0.00019228,2]
[375182252,1753581040754,-460.0,0.00019228,2]
[375182254,1753581040764,-460.0,0.00019228,2]
[375182256,1753581040773,-460.59319374,0.00019228,2]
[375182258,1753581040783,-461.55377999,0.00019228,2]
[375182260,1753581040792,-460.0,0.00019228,2]
[375182262,1753581040802,-460.0,0.00019228,2]
[375182264,1753581040811,-460.0,0.00019228,2]
[375182266,1753581040821,-460.0,0.00019228,2]
[375182268,1753581040830,-266.27945693,0.00019228,2]
[375182270,1753581040839,-460.0,0.00019228,2]
[375182272,1753581040849,-467.80243627,0.00019228,2]
[375182274,1753581040859,-460.0,0.00019228,2]
[375182276,1753581040868,-461.81577067,0.00019228,2]
[375182278,1753581040877,-460.0,0.00019228,2]
[375182280,1753581040886,-460.0,0.00019228,2]
[375182282,1753581040896,-460.0,0.00019228,2]
[375182284,1753581040906,-460.0,0.00019228,2]
[375182286,1753581040916,-460.0,0.00019228,2]
[375182288,1753581040925,-460.0,0.00019228,2]
[375182290,1753581040935,-460.0,0.00019228,2]
[375182292,1753581040944,-460.0,0.00019228,2]
[375182294,1753581040953,-460.3134166,0.00019228,2]
[375182296,1753581040962,-460.0,0.00019228,2]
[375182298,1753581040972,-460.0,0.00019228,2]
[375182300,1753581040981,-472.42270452,0.00019228,2]
[375182302,1753581040992,-460.0,0.00019228,2]
[375182304,1753581041002,-460.0,0.00019228,2]
[375182306,1753581041011,-460.0,0.00019228,2]
[375182308,1753581041021,-461.06676263,0.00019228,2]
[375182310,1753581041030,-460.0,0.00019228,2]
[375182312,1753581041040,-460.0,0.00019228,2]
[375182313,1753581041049,-460.0,0.00019228,2]
[375182315,1753581041059,-460.0,0.00019228,2]
[375182317,1753581041069,-464.45798441,0.00019228,2]
[375182319,1753581041079,-460.0,0.00019228,2]
[375182321,1753581041089,-460.0,0.00019228,2]
[375182323,1753581041099,-460.0,0.00019228,2]
[375182325,1753581041109,-460.0,0.00019228,2]
[375182327,1753581041119,-460.0,0.00019228,2]
[375182329,1753581041128,-460.0,0.00019228,2]
[375182331,1753581041138,-460.0,0.00019228,2]
[375182333,1753581041147,-460.40992536,0.00019228,2]
[375182335,1753581041158,-461.07916883,0.00019228,2]
[375182337,1753581041168,-461.97583283,0.00019228,2]
[375182339,1753581041177,-512.88,0.00019228,2]
[375182341,1753581041186,-460.0,0.00019228,2]
[375182343,1753581041195,-460.0,0.00019228,2]
[375182345,1753581041204,-460.0,0.00019228,2]
[375182347,1753581041214,-460.0,0.00019228,2]
[375182349,1753581041223,-461.19205648,0.00019228,2]
[375182351,1753581041232,-461.0594139,0.00019228,2]
[375182353,1753581041241,-460.0,0.00019228,2]
[375182355,1753581041251,-460.0,0.00019228,2]
[375182357,1753581041260,-579.20689061,0.00019228,2]
[375182359,1753581041269,-462.69205944,0.00019228,2]
[375182361,1753581041278,-460.0,0.00019228,2]
[375182363,1753581041288,-460.0,0.00019228,2]
[375182365,1753581041297,-461.77511211,0.00019228,2]
[375182367,1753581041306,-385.20650804,0.00019228,2]
[375182369,1753581041315,-460.0,0.00019228,2]
[375182371,1753581041325,-460.0,0.00019228,2]
[375182373,1753581041334,-460.0,0.00019228,2]
[375182375,1753581041345,-579.78794979,0.00019228,2]
[375182377,1753581041354,-460.0,0.00019228,2]
[375182379,1753581041364,-460.0,0.00019228,2]
[375182381,1753581041373,-460.0,0.00019228,2]
[375182383,1753581041383,-475.22904945,0.00019228,2]
[375182385,1753581041392,-460.0,0.00019228,2]
[375182387,1753581041401,-460.0,0.00019228,2]
[375182389,1753581041411,-489.92460387,0.00019228,2]
[375182391,1753581041424,-460.0,0.00019228,2]
[375182393,1753581041433,-460.0,0.00019228,2]
[375182395,1753581041443,-408.31832089,0.00019228,2]
[375182397,1753581041452,-460.0,0.00019228,2]
[375182399,1753581041462,-461.19538447,0.00019228,2]
[375182401,1753581041471,-460.0,0.00019228,2]
[375182403,1753581041480,-460.0,0.00019228,2]
[375182405,1753581041490,-1072.02,0.00019228,2]
[375182407,1753581041499,-602.17571972,0.00019228,2]
[375182409,1753581041509,-460.0,0.00019228,2]
[375182411,1753581041518,-460.0,0.00019228,2]
[375182412,1753581041527,-460.0,0.00019228,2]
[375182414,1753581041536,-460.0,0.00019228,2]
[375182416,1753581041546,-500.0,0.00019228,2]
[375182418,1753581041555,-460.0,0.00019228,2]
[375182420,1753581041565,-500.0,0.00019228,2]
[375182422,1753581041574,-500.0,0.00019228,2]
[375182424,1753581041584,-461.24342492,0.00019228,2]
[375182426,1753581041594,-500.0,0.00019228,2]
[375182428,1753581041604,-460.0,0.00019228,2]
[375182430,1753581041614,-460.0,0.00019228,2]
[375182432,1753581041623,-460.0,0.00019228,2]
[375182434,1753581041633,-460.0,0.00019228,2]
[375182436,1753581041642,-460.0,0.00019228,2]
[375182438,1753581041651,-460.0,0.00019228,2]
[375182440,1753581041660,-460.0,0.00019228,2]
[375182442,1753581041669,-461.00573277,0.00019228,2]
[375182444,1753581041680,-460.0,0.00019228,2]
[375182446,1753581041690,-460.0,0.00019228,2]
[375182448,1753581041700,-460.0,0.00019228,2]
[375182450,1753581041709,-460.0,0.00019228,2]
[375182452,1753581041719,-460.0,0.00019228,2]
[375182454,1753581041729,-460.0,0.00019228,2]
[375182456,1753581041738,-460.0,0.00019228,2]
[375182458,1753581041747,-460.0,0.00019228,2]
[375182460,1753581041757,-460.0,0.00019228,2]
[375182462,1753581041766,-460.0,0.00019228,2]
[375182464,1753581041776,-460.0,0.00019228,2]
[375182466,1753581041786,-2025.96,0.00019228,2]
[375182468,1753581041795,-460.0,0.00019228,2]
[375182470,1753581041804,-460.99402491,0.00019228,2]
[375182472,1753581041813,-460.0,0.00019228,2]
[375182474,1753581041823,-460.0,0.00019228,2]
[375182476,1753581041833,-460.0,0.00019228,2]
[375182478,1753581041842,-1006.77,0.00019228,2]
[375182480,1753581041851,-460.0,0.00019228,2]
[375182482,1753581041861,-460.0,0.00019228,2]
[375182483,1753581041870,-546.90299416,0.00019228,2]
[375182484,1753581041879,-460.0,0.00019228,2]
[375182485,1753581041888,-460.0,0.00019228,2]
[375182486,1753581041897,-460.0,0.00019228,2]
[375182487,1753581041907,-460.0,0.00019228,2]
[375182488,1753581041916,-580.18692429,0.00019228,2]
[375182489,1753581041925,-460.7510949,0.00019228,2]
[375182490,1753581041934,-462.21596121,0.00019228,2]
[375182491,1753581041943,-460.0,0.00019228,2]
[375182492,1753581041952,-460.0,0.00019228,2]
[375182493,1753581041961,-461.80427232,0.00019228,2]
[375182494,1753581041971,-460.0,0.00019228,2]
[375182495,1753581041981,-460.0,0.00019228,2]
[375182496,1753581041990,-460.0,0.00019228,2]
[375182497,1753581042000,-460.0,0.00019228,2]
[375182498,1753581042009,-674.58,0.00019228,2]
[375182499,1753581042018,-460.0,0.00019228,2]
[375182500,1753581042027,-460.0,0.00019228,2]
[375182501,1753581042036,-460.0,0.00019228,2]
[375182502,1753581042045,-756.57,0.00019228,2]
[375182503,1753581042054,-460.0,0.00019228,2]
[375182504,1753581042064,-460.0,0.00019228,2]
[375182506,1753581042074,-460.0,0.00019228,2]
[375182507,1753581042083,-460.0,0.00019228,2]
[375182509,1753581042094,-460.0,0.00019228,2]
[375182510,1753581042103,-461.7043832,0.00019228,2]
[375182512,1753581042112,-460.0,0.00019228,2]
[375182514,1753581042121,-460.0,0.00019228,2]
[375182516,1753581042129,-460.0,0.00019228,2]
[375182518,1753581042139,-460.0,0.00019228,2]
[375182520,1753581042148,-460.0,0.00019228,2]
[375182522,1753581042157,-471.46,0.00019228,2]
[375182524,1753581042166,-460.0,0.00019228,2]
[375182526,1753581042179,-461.28619102,0.00019228,2]
[375182528,1753581042189,-460.0,0.00019228,2]
[375182530,1753581042199,-462.21729647,0.00019228,2]
[375182532,1753581042208,-460.0,0.00019228,2]
[375182534,1753581042219,-460.0,0.00019228,2]
[375182536,1753581042228,-460.0,0.00019228,2]
[375182538,1753581042238,-460.0,0.00019228,2]
[375182540,1753581042247,-1620.18,0.00019228,2]
[375182542,1753581042257,-460.0,0.00019228,2]
[375182544,1753581042266,-460.44322161,0.00019228,2]
[375182546,1753581042275,-460.0,0.00019228,2]
[375182548,1753581042284,-460.0,0.00019228,2]
[375182550,1753581042294,-460.0,0.00019228,2]
[375182552,1753581042303,-460.0,0.00019228,2]
[375182554,1753581042313,-460.0,0.00019228,2]
[375182556,1753581042322,-460.0,0.00019228,2]
[375182558,1753581042331,-460.0,0.00019228,2]
[375182560,1753581042341,-460.0,0.00019228,2]
[375182562,1753581042351,-460.0,0.00019228,2]
[375182564,1753581042360,-460.63180765,0.00019228,2]
[375182566,1753581042369,-460.0,0.00019228,2]
[375182568,1753581042379,-460.57628917,0.00019228,2]
[375182570,1753581042388,-460.0,0.00019228,2]
[375182572,1753581042397,-1840.08,0.00019228,2]
[375182574,1753581042407,-460.0,0.00019228,2]
[375182576,1753581042419,-460.0,0.00019228,2]
[375182578,1753581042428,-460.0,0.00019228,2]
[375182580,1753581042438,-461.03232639,0.00019228,2]
[375182582,1753581042447,-460.0,0.00019228,2]
[375182584,1753581042457,-460.0,0.00019228,2]
[375182586,1753581042466,-460.0,0.00019228,2]
[375182588,1753581042476,-460.0,0.00019228,2]
[375182590,1753581042485,-460.0,0.00019228,2]
[375182591,1753581042497,-460.0,0.00019228,2]
[375182594,1753581042507,-460.0,0.00019228,2]
[375182596,1753581042517,-460.0,0.00019228,2]
[375182597,1753581042526,-460.0,0.00019228,2]
[375182599,1753581042535,-361.12993396,0.00019228,2]
[375182601,1753581042545,-308.16281489,0.00019228,2]
[375182603,1753581042555,-460.0,0.00019228,2]
[375182605,1753581042564,-460.0,0.00019228,2]
[375182607,1753581042574,-460.0,0.00019228,2]
[375182609,1753581042584,-460.0,0.00019228,2]
[375182611,1753581042595,-460.0,0.00019228,2]
[375182613,1753581042604,-460.0,0.00019228,2]
[375182615,1753581042613,-460.0,0.00019228,2]
[375182617,1753581042623,-461.51906437,0.00019228,2]
[375182619,1753581042632,-460.0,0.00019228,2]
[375182621,1753581042641,-460.0,0.00019228,2]
[375182623,1753581042651,-460.0,0.00019228,2]
[375182625,1753581042660,-436.40200359,0.00019228,2]
[375182627,1753581042670,-460.0,0.00019228,2]
[375182629,1753581042679,-460.0,0.00019228,2]
[375182631,1753581042689,-222.08253314,0.00019228,2]
[375182633,1753581042698,-1601.61,0.00019228,2]
[375182635,1753581042708,-460.0,0.00019228,2]
[375182637,1753581042717,-460.0,0.00019228,2]
[375182639,1753581042726,-460.0,0.00019228,2]
[375182641,1753581042735,-460.0,0.00019228,2]
[375182643,1753581042745,-460.4949769,0.00019228,2]
[375182645,1753581042754,-460.0,0.00019228,2]
[375182646,1753581042764,-460.0,0.00019228,2]
[375182648,1753581042773,-502.46316421,0.00019228,2]
[375182650,1753581042783,-460.0,0.00019228,2]
[375182652,1753581042792,-460.0,0.00019228,2]
[375182654,1753581042801,-460.98073631,0.00019228,2]
[375182656,1753581042811,-460.0,0.00019228,2]
[375182658,1753581042820,-460.0,0.00019228,2]
[375182660,1753581042830,-500.0,0.00019228,2]
[375182662,1753581042840,-460.0,0.00019228,2]
[375182664,1753581042850,-500.0,0.00019228,2]
[375182666,1753581042859,-500.0,0.00019228,2]
[375182669,1753581042869,-466.93367938,0.00019228,2]
[375182670,1753581042879,-500.94058335,0.00019228,2]
[375182673,1753581042888,-460.0,0.00019228,2]
[375182674,1753581042898,-460.0,0.00019228,2]
[375182676,1753581042908,-460.0,0.00019228,2]
[375182678,1753581042917,-460.0,0.00019228,2]
[375182680,1753581042926,-460.0,0.00019228,2]
[375182682,1753581042937,-460.495957,0.00019228,2]
[375182684,1753581042946,-462.63270597,0.00019228,2]
[375182687,1753581042956,-663.29,0.00019228,2]
[375182688,1753581042967,-464.17359126,0.00019228,2]
[375182690,1753581042979,-4064.15,0.00019228,2]
[375182692,1753581042989,-4064.15,0.00019228,2]
[375182694,1753581043000,-4064.15,0.00019228,2]
[375182696,1753581043009,-4064.15,0.00019228,2]
[375182698,1753581043019,-460.0,0.00019228,2]
[375182700,1753581043029,-460.0,0.00019228,2]
[375182702,1753581043039,-461.55406551,0.00019228,2]
[375182704,1753581043049,-522.23,0.00019228,2]
[375182706,1753581043059,-460.0,0.00019228,2]
[375182708,1753581043068,-1432.36,0.00019228,2]
[375182710,1753581043079,-460.0,0.00019228,2]
[375182712,1753581043090,-460.0,0.00019228,2]
[375182714,1753581043099,-460.0,0.00019228,2]
[375182717,1753581043109,-460.0,0.00019228,2]
[375182719,1753581043119,-460.0,0.00019228,2]
[375182720,1753581043129,-460.0,0.00019228,2]
[375182722,1753581043138,-460.0,0.00019228,2]
[375182724,1753581043148,-460.0,0.00019228,2]
[375182726,1753581043157,-460.0,0.00019228,2]
[375182729,1753581043167,-460.0,0.00019228,2]
[375182730,1753581043177,-460.0,0.00019228,2]
[375182732,1753581043186,-460.0,0.00019228,2]
[375182734,1753581043196,-460.0,0.00019228,2]
[375182736,1753581043206,-460.71469056,0.00019228,2]
[375182738,1753581043215,-460.0,0.00019228,2]
[375182740,1753581043225,-460.0,0.00019228,2]
[375182742,1753581043234,-460.0,0.00019228,2]
[375182744,1753581043246,-5218.69,0.00019228,2]
[375182746,1753581043255,-460.0,0.00019228,2]
[375182749,1753581043266,-460.0,0.00019228,2]
[375182750,1753581043275,-460.0,0.00019228,2]
[375182752,1753581043284,-593.35236986,0.00019228,2]
[375182754,1753581043293,-663.2,0.00019228,2]
[375182768,1753581043422,-460.0,0.00019228,2]
[375182770,1753581043432,-460.0,0.00019228,2]
[375182772,1753581043442,-382.13049297,0.00019228,2]
[375182774,1753581043452,-460.0,0.00019228,2]
[375182776,1753581043462,-460.95729744,0.00019228,2]
[375182778,1753581043472,-460.0,0.00019228,2]
[375182780,1753581043481,-460.0,0.00019228,2]
[375182782,1753581043492,-460.0,0.00019228,2]
[375182784,1753581043501,-460.34862423,0.00019228,2]
[375182786,1753581043511,-507.63,0.00019228,2]
[375182788,1753581043520,-302.28049207,0.00019228,2]
[375182790,1753581043530,-460.0,0.00019228,2]
[375182792,1753581043541,-590.85134136,0.00019228,2]
[375182794,1753581043550,-460.0,0.00019228,2]
[375182796,1753581043560,-460.0,0.00019228,2]
[375182798,1753581043569,-460.0,0.00019228,2]
[375182800,1753581043581,-460.0,0.00019228,2]
[375182802,1753581043591,-460.0,0.00019228,2]
[375182804,1753581043601,-342.01293921,0.00019228,2]
[375182806,1753581043610,-682.33,0.00019228,2]
[375182808,1753581043620,-460.0,0.00019228,2]
[375182810,1753581043629,-460.77149724,0.00019228,2]
[375182812,1753581043639,-460.0,0.00019228,2]
[375182814,1753581043648,-460.0,0.00019228,2]
[375182816,1753581043658,-460.0,0.00019228,2]
[375182818,1753581043667,-460.0,0.00019228,2]
[375182820,1753581043676,-460.0,0.00019228,2]
[375182822,1753581043686,-518.86892856,0.00019228,2]
[375182823,1753581043695,-460.0,0.00019228,2]
[375182825,1753581043704,-460.0,0.00019228,2]
[375182827,1753581043713,-460.99341197,0.00019228,2]
[375182829,1753581043723,-460.0,0.00019228,2]
[375182831,1753581043732,-460.0,0.00019228,2]
[375182833,1753581043742,-460.0,0.00019228,2]
[375182835,1753581043750,-500.0,0.00019229,2]
[375182837,1753581043760,-500.0,0.00019229,2]
[375182839,1753581043769,-4064.15,0.00019229,2]
[375182841,1753581043778,-500.0,0.0001923,2]
[375182843,1753581043787,-500.0,0.0001923,2]
[375182845,1753581043797,-460.0,0.0001923,2]
[375182847,1753581043806,-4064.15,0.0001923,2]
[375182849,1753581043815,-461.40742516,0.00019231,2]
[375182851,1753581043826,-461.53831293,0.00019231,2]
[375182853,1753581043835,-460.15158055,0.00019231,2]
[375182855,1753581043845,-460.73797209,0.00019231,2]
[375182857,1753581043855,-461.52345097,0.00019231,2]
[375182859,1753581043864,-461.56912124,0.00019231,2]
[375182861,1753581043873,-460.0,0.00019231,2]
[375182863,1753581043882,-460.0,0.00019231,2]
[375182865,1753581043892,-299.73570684,0.00019231,2]
[375182867,1753581043901,-460.0,0.00019231,2]
[375182869,1753581043912,-460.0,0.00019231,2]
[375182871,1753581043922,-335.00232095,0.00019231,2]
[375182873,1753581043932,-460.0,0.00019231,2]
[375182875,1753581043941,-460.0,0.00019231,2]
[375182877,1753581043951,-460.0,0.00019231,2]
[375182879,1753581043960,-460.0,0.00019231,2]
[375182881,1753581043969,-530.10220535,0.00019231,2]
[375182883,1753581043979,-460.71446984,0.00019231,2]
[375182885,1753581043988,-792.4,0.00019231,2]
[375182887,1753581043998,-792.4,0.00019231,2]
[375182889,1753581044007,-460.0,0.00019231,2]
[375182891,1753581044017,-460.0,0.00019231,2]
[375182893,1753581044026,-460.0,0.00019231,2]
[375182895,1753581044035,-460.0,0.00019231,2]
[375182897,1753581044044,-460.0,0.00019231,2]
[375182899,1753581044053,-460.0,0.00019231,2]
[375182901,1753581044062,-460.0,0.00019231,2]
[375182903,1753581044071,-460.0,0.00019231,2]
[375182905,1753581044081,-460.0,0.00019231,2]
[375182907,1753581044092,-460.56951518,0.00019231,2]
[375182909,1753581044101,-460.0,0.00019231,2]
[375182911,1753581044111,-460.0,0.00019231,2]
[375182913,1753581044120,-460.0,0.00019231,2]
[375182915,1753581044129,-460.0,0.00019231,2]
[375182917,1753581044139,-460.0,0.00019231,2]
[375182919,1753581044149,-460.0,0.00019231,2]
[375182921,1753581044158,-460.0,0.00019231,2]
[375182923,1753581044168,-460.0,0.00019231,2]
[375182925,1753581044178,-460.0,0.00019231,2]
[375182927,1753581044187,-460.0,0.00019231,2]
[375182929,1753581044197,-460.0,0.00019231,2]
[375182930,1753581044206,-460.0,0.00019231,2]
[375182933,1753581044217,-460.0,0.00019231,2]
[375182934,1753581044225,-460.0,0.00019231,2]
[375182936,1753581044236,-460.0,0.00019231,2]
[375182938,1753581044245,-460.0,0.00019231,2]
[375182941,1753581044255,-460.0,0.00019231,2]
[375182942,1753581044265,-500.0,0.00019231,2]
[375182945,1753581044275,-500.0,0.00019231,2]
[375182946,1753581044285,-460.0,0.00019231,2]
[375182948,1753581044295,-460.0,0.00019231,2]
[375182950,1753581044304,-460.0,0.00019231,2]
[375182952,1753581044314,-460.0,0.00019231,2]
[375182954,1753581044324,-460.0,0.00019231,2]
[375182956,1753581044333,-461.92055933,0.00019231,2]
[375182958,1753581044344,-460.0,0.00019231,2]
[375182960,1753581044354,-4064.15,0.00019231,2]
[375182962,1753581044364,-4064.15,0.00019231,2]
[375182964,1753581044374,-460.0,0.00019231,2]
[375182966,1753581044383,-460.0,0.00019231,2]
[375182968,1753581044393,-460.0,0.00019231,2]
[375182970,1753581044403,-460.0,0.00019231,2]
[375182972,1753581044413,-460.0,0.00019231,2]
[375182974,1753581044427,-460.0,0.00019231,2]
[375182977,1753581044440,-460.0,0.00019232,2]
[375182978,1753581044450,-460.0,0.00019232,2]
[375182980,1753581044461,-462.18787455,0.00019232,2]
[375182982,1753581044471,-460.97760049,0.00019232,2]
[375182984,1753581044483,-460.38045177,0.00019232,2]
[375182986,1753581044493,-461.441021,0.00019232,2]
[375182988,1753581044502,-556.25470184,0.00019232,2]
[375182990,1753581044511,-460.0,0.00019232,2]
[375182992,1753581044521,-460.0,0.00019232,2]
[375182994,1753581044530,-460.0,0.00019232,2]
[375182996,1753581044539,-292.72514489,0.00019232,2]
[375182998,1753581044549,-460.0,0.00019232,2]
[375183000,1753581044558,-460.0,0.00019232,2]
[375183002,1753581044567,-460.0,0.00019232,2]
[375183004,1753581044577,-460.0,0.00019232,2]
[375183006,1753581044587,-460.0,0.00019232,2]
[375183008,1753581044598,-460.0,0.00019232,2]
[375183010,1753581044607,-460.0,0.00019232,2]
[375183011,1753581044617,-460.0,0.00019232,2]
[375183012,1753581044626,-460.0,0.00019232,2]
[375183013,1753581044635,-460.0,0.00019232,2]
[375183014,1753581044645,-460.0,0.00019232,2]
[375183015,1753581044654,-465.56340735,0.00019232,2]
[375183016,1753581044664,-460.0,0.00019232,2]
[375183017,1753581044674,-460.0,0.00019232,2]
[375183018,1753581044683,-460.0,0.00019232,2]
[375183020,1753581044693,-422.43039946,0.00019232,2]
[375183022,1753581044702,-461.88344978,0.00019232,2]
[375183024,1753581044711,-461.0682558,0.00019232,2]
[375183025,1753581044720,-460.0,0.00019232,2]
[375183027,1753581044729,-461.49533623,0.00019232,2]
[375183030,1753581044739,-460.0,0.00019232,2]
[375183032,1753581044748,-460.0,0.00019232,2]
[375183033,1753581044758,-460.0,0.00019232,2]
[375183035,1753581044768,-460.0,0.00019232,2]
[375183038,1753581044777,-460.58405561,0.00019232,2]
[375183040,1753581044787,-460.0,0.00019232,2]
[375183042,1753581044797,-460.0,0.00019232,2]
[375183043,1753581044806,-460.0,0.00019232,2]
[375183045,1753581044815,-460.74781234,0.00019232,2]
[375183048,1753581044825,-460.0,0.00019232,2]
[375183050,1753581044834,-460.52305645,0.00019232,2]
[375183052,1753581044846,-460.0,0.00019232,2]
[375183054,1753581044856,-460.0,0.00019232,2]
[375183056,1753581044865,-460.0,0.00019232,2]
[375183058,1753581044874,-461.02341897,0.00019232,2]
[375183060,1753581044884,-460.0,0.00019232,2]
[375183062,1753581044893,-460.0,0.00019232,2]
[375183064,1753581044902,-460.0,0.00019232,2]
[375183065,1753581044911,-500.0,0.00019232,2]
[375183068,1753581044921,-460.0,0.00019232,2]
[375183069,1753581044930,-460.0,0.00019232,2]
[375183071,1753581044939,-460.0,0.00019232,2]
[375183073,1753581044948,-460.0,0.00019232,2]
[375183076,1753581044957,-460.0,0.00019232,2]
[375183077,1753581044967,-460.0,0.00019232,2]
[375183080,1753581044976,-460.57458881,0.00019232,2]
[375183082,1753581044986,-460.0,0.00019232,2]
[375183083,1753581044995,-460.0,0.00019232,2]
[375183086,1753581045005,-461.04615974,0.00019232,2]
[375183087,1753581045015,-469.67369961,0.00019232,2]
[375183089,1753581045024,-460.0,0.00019232,2]
[375183091,1753581045033,-460.0,0.00019232,2]
[375183093,1753581045042,-461.64589612,0.00019232,2]
[375183095,1753581045051,-460.78756726,0.00019232,2]
[375183097,1753581045061,-460.0,0.00019232,2]
[375183099,1753581045070,-460.0,0.00019232,2]
[375183101,1753581045079,-460.0,0.00019232,2]
[375183103,1753581045088,-460.0,0.00019232,2]
[375183105,1753581045099,-460.49276666,0.00019232,2]
[375183107,1753581045109,-460.0,0.00019232,2]
[375183109,1753581045118,-463.86792371,0.00019232,2]
[375183111,1753581045128,-460.0,0.00019232,2]
[375183113,1753581045137,-460.0,0.00019232,2]
[375183115,1753581045147,-460.40005057,0.00019232,2]
[375183117,1753581045157,-461.79850217,0.00019232,2]
[375183119,1753581045166,-460.0,0.00019232,2]
[375183121,1753581045176,-460.0,0.00019232,2]
[375183124,1753581045186,-460.0,0.00019232,2]
[375183126,1753581045196,-460.0,0.00019232,2]
[375183128,1753581045206,-460.75701456,0.00019232,2]
[375183130,1753581045215,-461.14379828,0.00019232,2]
[375183132,1753581045225,-460.0,0.00019232,2]
[375183134,1753581045234,-460.0,0.00019232,2]
[375183136,1753581045244,-460.32343707,0.00019232,2]
[375183138,1753581045254,-461.77450427,0.00019232,2]
[375183140,1753581045263,-460.0,0.00019232,2]
[375183142,1753581045272,-460.67646599,0.00019232,2]
[375183144,1753581045282,-460.0,0.00019232,2]
[375183146,1753581045291,-460.0,0.00019232,2]
[375183147,1753581045300,-460.54065662,0.00019232,2]
[375183149,1753581045309,-461.65522058,0.00019232,2]
[375183151,1753581045318,-3030.31,0.00019232,2]
[375183153,1753581045328,-314.88778357,0.00019232,2]
[375183155,1753581045338,-500.17990459,0.00019232,2]
[375183157,1753581045347,-460.0,0.00019232,2]
[375183159,1753581045357,-460.0,0.00019232,2]
[375183161,1753581045366,-1017.69,0.00019232,2]
[375183163,1753581045376,-447.7398928,0.00019232,2]
[375183165,1753581045385,-460.0,0.00019232,2]
[375183167,1753581045395,-460.0,0.00019232,2]
[375183169,1753581045404,-461.15708608,0.00019232,2]
[375183171,1753581045414,-460.0,0.00019232,2]
[375183173,1753581045426,-460.0,0.00019232,2]
[375183175,1753581045435,-1075.9,0.00019232,2]
[375183177,1753581045445,-460.0,0.00019232,2]
[375183179,1753581045456,-460.0,0.00019232,2]
[375183181,1753581045468,-460.98823872,0.00019232,2]
[375183183,1753581045477,-460.0,0.00019232,2]
[375183185,1753581045486,-460.26379152,0.00019232,2]
[375183187,1753581045497,-460.0,0.00019232,2]
[375183189,1753581045506,-1162.34,0.00019234,2]
[375183191,1753581045516,-460.0,0.00019234,2]
[375183193,1753581045526,-460.0,0.00019234,2]
[375183195,1753581045535,-460.0,0.00019234,2]
[375183197,1753581045544,-460.0,0.00019234,2]
[375183199,1753581045554,-985.53,0.00019234,2]
[375183201,1753581045563,-1676.65,0.00019234,2]
[375183203,1753581045573,-460.0,0.00019234,2]
[375183205,1753581045582,-1307.85,0.00019234,2]
[375183207,1753581045592,-460.0,0.00019234,2]
[375183209,1753581045601,-500.0,0.0001924,2]
[375183211,1753581045610,-4064.15,0.0001924,2]
[375183213,1753581045619,-500.0,0.00019242,2]
[375183215,1753581045629,-4064.15,0.00019242,2]
[375183217,1753581045638,-460.0,0.00019243,2]
[375183219,1753581045648,-461.6336121,0.00019243,2]